Cogmind - Beta 16.1 @@@ ROGUE MODE // 2026.03.30 @ 00:08:30 // Winter2019/RPGLIKE Player: Toaster Result: Escaped! Performance ------------- Evolutions (9) 4500 Regions Visited (24) 4800 Robots Destroyed (402) 2010 Value Destroyed (21784) 21784 Prototype IDs (109) 2180 Alien Tech Used (1) 200 Bonus (21083) 21083 TOTAL SCORE: 56557 Bonus ------- High Alert Combat Kills 8917 Follower Combat Kills 6853 Registered with UFD 300 Met Data Miner 300 Met Zhirov 300 MAIN.C Attacked Warlord 500 Warlord Defense Kills 1674 Win 3000 Friendly Fire -761 Cogmind --------- Core Integrity 323/1950 Matter 70/300 Energy 1021/1035 System Corruption 2% Temperature Cool (8) Movement Walking (124) Location To Epsilon Eridani Parts ------- > --- POWER (4) -------- F-cell Engine Neutrino Core Heavy Antimatter Reactor Light Particle Reactor > --- PROPULSION (6) --- Advanced Myomer Leg Advanced Myomer Leg Advanced Myomer Leg Centrium Leg Heavy Shield Leg > --- UTILITY (9+1) ---- Experimental Signal Interpreter (+) Particle Accelerator Improved Powered Armor A0-MCA's Component Scanner Amulet of Y3-NDR Rainbow Chip > --- WEAPON (5) ------- Matter Neutralizer Matter Neutralizer Enhanced Nova Cannon Heavy Linear Accelerator > --- INVENTORY (2) ---- Vortex Catalyst Activator (10) Peak State ------------ > --- POWER ------------ F-cell Engine Neutrino Core Heavy Antimatter Reactor Light Particle Reactor > --- PROPULSION ------- Advanced Myomer Leg Advanced Myomer Leg Advanced Myomer Leg Centrium Leg Heavy Shield Leg > --- UTILITY ---------- Experimental Signal Interpreter Particle Accelerator Damper Plating Improved Powered Armor A0-MCA's Component Scanner Amulet of Y3-NDR Rainbow Chip > --- WEAPON ----------- Matter Neutralizer Matter Neutralizer Enhanced Nova Cannon Heavy Linear Accelerator > --- INVENTORY -------- Vortex Catalyst Activator [Rating: 195] Favorites ----------- Power Ion Engine Engine Ion Engine Power Core Neutrino Core Reactor Heavy Antimatter Reactor Propulsion Advanced Myomer Leg Leg Advanced Myomer Leg Wheel Wheel Utility Rainbow Chip Device Power Bank Storage Large Matter Pod Processor Rainbow Chip Hackware Makeshift Hacking Suite Protection Damper Plating Weapon Heavy Phase Cannon Energy Gun Beam Rifle Energy Cannon Heavy Phase Cannon Ballistic Gun Barrage Gun Ballistic Cannon Battle Cannon Special Weapon Mining Laser Build | -11 -10 -10 -9 -9 -6 -6 -6 -6 -5 -5 -5 -5 -5 -5 -5 -4 -4 -4 -4 -4 -3 -3 -2 -1 ------- Run | Yrd Mat Sub Rec Scr Fac Low Low Dat Pro Fac Was Fac Upp Upp War Pro Fac Upp Upp Zhi Pro Res Res Acc Slots Evolved 19 | 3 2 1 3 . 1 1 1 . 1 2 . 1 . . . . . . 1 . 1 . 1 . Power 2 | . . . . . . . . . . . . . . . . . . . 1 . 1 . . . Propulsion 5 | 1 . . 2 . . . . . 1 1 . . . . . . . . . . . . . . Utility 8 | 1 1 1 1 . . 1 1 . . 1 . 1 . . . . . . . . . . . . Weapon 4 | 1 1 . . . 1 . . . . . . . . . . . . . . . . . 1 . Parts Attached 91 | 5 13 8 5 4 16 5 1 . 1 5 2 3 1 1 3 . 7 . . 2 3 . 5 1 Power 10 | 1 1 . . 1 2 . . . . 1 . . . 1 . . . . . 1 2 . . . Engine 6 | 1 1 . . 1 2 . . . . 1 . . . . . . . . . . . . . . Core 2 | . . . . . . . . . . . . . . 1 . . . . . . 1 . . . Reactor 2 | . . . . . . . . . . . . . . . . . . . . 1 1 . . . Propulsion 29 | 2 3 . 2 1 5 1 . . . 3 1 1 . . 2 . 6 . . . . . 2 . Treads . | . . . . . . . . . . . . . . . . . . . . . . . . . Leg 26 | . 2 . 2 1 5 1 . . . 3 1 1 . . 2 . 6 . . . . . 2 . Wheel 3 | 2 1 . . . . . . . . . . . . . . . . . . . . . . . Hover . | . . . . . . . . . . . . . . . . . . . . . . . . . Flight . | . . . . . . . . . . . . . . . . . . . . . . . . . Utility 27 | . 6 3 2 2 4 2 1 . 1 1 1 . 1 . . . 1 . . 1 1 . . . Device 11 | . 1 2 . . 3 . 1 . . 1 . . 1 . . . 1 . . 1 . . . . Storage 1 | . 1 . . . . . . . . . . . . . . . . . . . . . . . Processor 5 | . 2 . 1 2 . . . . . . . . . . . . . . . . . . . . Hackware 1 | . . . 1 . . . . . . . . . . . . . . . . . . . . . Protection 9 | . 2 1 . . 1 2 . . 1 . 1 . . . . . . . . . 1 . . . Artifact . | . . . . . . . . . . . . . . . . . . . . . . . . . Weapon 25 | 2 3 5 1 . 5 2 . . . . . 2 . . 1 . . . . . . . 3 1 Energy Gun 5 | . 3 . . . 2 . . . . . . . . . . . . . . . . . . . Energy Cannon 11 | . . . 1 . 3 2 . . . . . 2 . . . . . . . . . . 2 1 Ballistic Gun 4 | 2 . 2 . . . . . . . . . . . . . . . . . . . . . . Ballistic Cannon 4 | . . 2 . . . . . . . . . . . . 1 . . . . . . . 1 . Launcher . | . . . . . . . . . . . . . . . . . . . . . . . . . Special Weapon 1 | . . 1 . . . . . . . . . . . . . . . . . . . . . . Impact Weapon . | . . . . . . . . . . . . . . . . . . . . . . . . . Slashing Weapon . | . . . . . . . . . . . . . . . . . . . . . . . . . Piercing Weapon . | . . . . . . . . . . . . . . . . . . . . . . . . . Special Melee Weapon . | . . . . . . . . . . . . . . . . . . . . . . . . . Unidentified Prototypes 2 | . . 1 . . . . . . . . . . . . . . . . . 1 . . . . Parts Lost 1 | . . . . . . . . . . . . . . . . . . . . . . . . 1 Power . | . . . . . . . . . . . . . . . . . . . . . . . . . Propulsion . | . . . . . . . . . . . . . . . . . . . . . . . . . Utility 1 | . . . . . . . . . . . . . . . . . . . . . . . . 1 Weapon . | . . . . . . . . . . . . . . . . . . . . . . . . . Highest Loss Streak 1 | . . . . . . . . . . . . . . . . . . . . . . . . 1 To Critical Strikes . | . . . . . . . . . . . . . . . . . . . . . . . . . Average Backups 1 | . . 1 1 . . 1 1 2 2 1 2 1 2 2 1 1 1 1 1 1 1 1 1 1 Power . | . . . . . . . . . . . . . . . . . . . . . . . . . Propulsion . | . . . . . . . . . . . . . . . . . . . . . . . . . Utility . | . . . 1 . . 1 . 1 1 . 1 . . . . . . . . . . . . . Weapon . | . . . . . . . 1 1 1 1 1 1 2 2 1 1 1 1 1 1 1 1 1 1 Tool/Special . | . . . . . . . . . . . . . . . . . . . . . . . . . Unused Backups 5 | . 1 . . . 1 . . . . . . . . . 2 . . . . . . . . 1 Power . | . . . . . . . . . . . . . . . . . . . . . . . . . Propulsion . | . . . . . . . . . . . . . . . . . . . . . . . . . Utility 1 | . . . . . 1 . . . . . . . . . . . . . . . . . . . Weapon 4 | . 1 . . . . . . . . . . . . . 2 . . . . . . . . 1 Tool/Special . | . . . . . . . . . . . . . . . . . . . . . . . . . Average Slot Usage (%) 81 | . 92 77 69 60 74 80 86 72 86 86 85 79 80 81 84 88 87 88 87 87 87 87 82 79 Engine 9 | . 11 8 6 5 9 18 17 17 17 16 16 14 12 12 12 12 12 12 11 10 4 4 4 4 Core 1 | . . . . . . . . . . . . . . 1 4 4 4 4 4 2 3 4 4 4 Reactor 1 | . . . . . . . . . . . . . . . . . . . . 1 6 7 8 8 Leg 21 | . 11 17 18 19 19 18 21 21 21 22 24 23 24 24 23 24 23 24 24 24 24 24 22 20 Device 9 | . 7 13 7 5 9 5 8 8 7 8 10 7 9 12 12 12 11 12 12 11 8 8 8 8 Processor 9 | . 3 . . 8 14 13 13 13 13 12 12 11 12 12 12 12 12 12 12 12 12 12 12 12 Hackware 1 | . . . 6 5 4 . . . . . . . . . . . . . . . . . . . Protection 6 | . 8 10 6 2 . 6 7 8 8 10 6 6 6 4 4 4 4 4 4 4 7 8 8 7 Energy Gun 1 | . 21 4 . . 2 3 . . . . . . . . . . . . . . . . . . Energy Cannon 11 | . . . 4 5 9 14 17 3 17 16 16 15 16 16 16 16 16 16 16 16 16 15 11 12 Ballistic Gun 1 | . 10 6 2 . . . . . . . . . . . . . . . . . . . . . Ballistic Cannon 4 | . . 11 14 10 3 . . . . . . . . . . 4 4 4 4 4 4 3 3 4 Peak Build Rating 195 | 5 15 29 46 63 98 112 119 119 120 142 145 152 149 155 170 170 176 175 175 175 184 184 192 195 Average Rating 118 | 3 11 23 31 53 81 104 117 99 119 132 142 149 148 150 157 170 173 175 174 173 180 183 186 192 On Entrance 122 | . 5 15 29 46 63 98 112 119 119 120 142 145 149 149 155 170 170 175 175 175 175 184 178 192 Avg Prop Armor Cover (%) . | . . . . . . . . . . . . . . . . . . . . . . . . . Naked Turns . | . . . . . . . . . . . . . . . . . . . . . . . . . Heaviest Build 179 | 9 20 37 37 36 64 87 94 94 101 107 123 131 122 129 139 139 148 148 148 148 167 167 176 179 Greatest Support 190 | 25 31 31 59 62 85 100 100 100 100 136 144 147 147 147 157 157 190 190 190 190 190 190 190 190 Greatest Overweight (x) 1 | . 1 1 1 . 1 1 . . 1 1 . 1 . . 1 . 1 . . . . . 1 . Average Overweight (x) . | . . . . . . . . . . . . . . . . . . . . . . . . . Largest Inventory Capacity 2 | 1 1 1 1 1 1 2 2 2 2 2 2 2 2 2 2 2 2 2 2 2 2 2 2 2 Average Capacity 1 | . 1 1 1 1 1 1 2 2 2 2 2 2 2 2 2 2 2 2 2 2 2 2 2 2 Most Carried 2 | . 1 1 1 1 1 2 2 2 2 2 2 2 2 2 2 2 2 2 2 2 2 2 2 2 Average Carried 1 | . . . 1 . . 1 1 2 1 1 2 1 2 2 1 2 2 2 2 2 2 2 2 2 Final Capacity 2 | 1 1 1 1 1 1 2 2 2 2 2 2 2 2 2 2 2 2 2 2 2 2 2 2 2 Final Carried 2 | . 1 1 1 1 1 2 2 2 2 2 2 2 2 2 2 2 2 2 2 2 2 2 2 2 Class Distribution -------------------- 25% | Generator-Tank 19% | Tank 11% | Hacker-Gunner 8% | Derelict-Gunner 6% | Commander-Gunner 6% | Generator-Gunner 6% | Gunner 5% | Hacker-Skirmisher 3% | Commander-Skirmisher Dominant Class ---------------- Tank | -10/Materials Derelict-Gunner | -10/Subcaves Derelict-Gunner | -9/Recycling Commander-Gunner | -9/Scraptown Hacker-Skirmisher | -6/Factory Skirmisher | -6/Lower Caves Tank | -6/Lower Caves Mutant | -6/Data Miner Tank | -5/Proximity Caves Generator-Tank | -5/Factory Generator-Tank | -5/Waste Generator-Tank | -5/Factory Tank | -5/Upper Caves Tank | -5/Upper Caves Generator-Tank | -5/Warlord Generator-Tank | -4/Proximity Caves Generator-Tank | -4/Factory Generator-Tank | -4/Upper Caves Generator-Tank | -4/Upper Caves Generator-Tank | -4/Zhirov Generator-Gunner | -3/Proximity Caves Generator-Gunner | -3/Research Hacker-Gunner | -2/Research Hacker-Gunner | -1/Access Resources | -11 -10 -10 -9 -9 -6 -6 -6 -6 -5 -5 -5 -5 -5 -5 -5 -4 -4 -4 -4 -4 -3 -3 -2 -1 ----------- Run | Yrd Mat Sub Rec Scr Fac Low Low Dat Pro Fac Was Fac Upp Upp War Pro Fac Upp Upp Zhi Pro Res Res Acc Matter Collected 5242 | 250 635 205 165 30 703 80 30 . 85 60 40 64 20 10 20 129 174 28 136 . 126 652 1021 579 Remotely . | . . . . . . . . . . . . . . . . . . . . . . . . . Salvage Created 19282 | . 1052 69 412 . 1818 692 229 . 526 638 459 1036 328 347 507 468 369 98 420 . 196 3948 3132 2538 Parts 937 | . 72 4 26 . 82 19 14 . 17 22 5 48 13 12 37 20 40 9 18 . 12 180 174 113 Haulers Intercepted 5 | . 2 . . . . . . . . . . 1 . . . . . . . . 1 . 1 . Recyclers Shooed 6 | . . . 1 . 2 . . . . . . . . . . . 1 . . . . 1 1 . Parts Field Recycled . | . . . . . . . . . . . . . . . . . . . . . . . . . Retrieved Matter . | . . . . . . . . . . . . . . . . . . . . . . . . . Parts Self-Destructed 192 | . . 21 . . . 11 13 . 24 . . . 14 23 . 30 . 6 25 . 25 . . . Prevented 108 | . . 1 . . . 7 . . 21 . . . 11 15 . 12 . 9 20 . 12 . . . Parts Restored . | . . . . . . . . . . . . . . . . . . . . . . . . . Kills | -11 -10 -10 -9 -9 -6 -6 -6 -6 -5 -5 -5 -5 -5 -5 -5 -4 -4 -4 -4 -4 -3 -3 -2 -1 ------- Run | Yrd Mat Sub Rec Scr Fac Low Low Dat Pro Fac Was Fac Upp Upp War Pro Fac Upp Upp Zhi Pro Res Res Acc Combat Hostiles Destroyed 330 | . 20 2 7 . 33 9 4 . 7 8 1 16 3 9 14 9 11 4 9 . 4 59 56 45 Guns 26 | . 18 1 2 . 4 1 . . . . . . . . . . . . . . . . . . Cannons 268 | . . . 5 . 28 8 3 . 7 6 . 10 3 9 14 9 10 4 7 . 4 53 49 39 AOE 4 | . 2 1 . . 1 . . . . . . . . . . . . . . . . . . . Classes Destroyed 27 | . 8 1 3 . 3 1 1 . . 2 1 . . . 2 2 . . . . . 2 . 1 Worker 22 | . 2 . . . 9 . . . . . . 1 . . . . . . . . . 3 3 4 Builder 10 | . . . . . 2 . . . . . . . . . . . . . . . . 1 5 2 Tunneler 2 | . 1 . . . . . . . . . . . . . . . 1 . . . . . . . Hauler 5 | . 2 . . . . . . . . . . 1 . . . . . . . . 1 . 1 . Recycler 14 | . 2 . 3 . 3 . . . . . . . . . . . . . . . . 3 1 2 Carrier 2 | . . . . . . . . . . . . . . . . 2 . . . . . . . . Mechanic 1 | . . . . . . . . . . . . . . . . . . . . . . 1 . . Operator 5 | . 1 . . . . . . . . 1 . 1 . . . . . . . . . . 1 1 Drone 1 | . . . . . . . . . . . . . . . . 1 . . . . . . . . Turret 1 | . . 1 . . . . . . . . . . . . . . . . . . . . . . Watcher 8 | . 3 . . . 2 . . . . . . . . . . . . . . . . 1 . 2 Swarmer 39 | . 3 2 . . . 1 2 . . . . . . . 1 3 . . 1 . . 8 9 9 Cutter 1 | . . . . . . . . . . . . . . . . . . . . . . 1 . . Saboteur 3 | . . . . . . . . . . . . . . . 1 . . . . . . 1 1 . Grunt 121 | . 17 . . . 22 3 . . 3 3 . 5 . 5 4 . . 3 4 . 2 18 16 16 Brawler 14 | . . . . . . 1 . . 2 . . . . . 2 2 . . . . . 2 5 . Duelist 14 | . . . . . 1 2 . . 1 . . . . 1 1 2 . . 2 . . 2 2 . Protector 4 | . . . 1 . . . . . . . . . . 1 1 . . . . . . . . 1 Sentry 27 | . . . 3 . 1 2 1 . 1 . . 2 . 1 . . 2 . 1 . 2 8 1 2 Specialist 2 | . . . . . . . . . . 1 . . . . . . . . . . . . . 1 Hunter 25 | . . . . . 4 . . . . 2 . . 3 . 1 . 5 1 . . . 2 2 5 Programmer 64 | . . . 3 . 5 . . . . . . 9 . . 2 . 4 . 1 . . 14 17 9 Heavy 6 | . . . . . . . . . . 1 . . . . . . . . . . . 2 2 1 Behemoth 6 | . . . . . . . 1 . . 1 . . . 1 . 1 . . . . . 1 1 . Compactor 1 | . . . . . . . . . . . 1 . . . . . . . . . . . . . Executioner 1 | . . . . . . . . . . . . . . . 1 . . . . . . . . . Scrapoid 1 | . . . . . . . . . . . . . . . . . . . . . . . . 1 Wizard 2 | . . . . . . . . . . . . . . . . . . . 1 . . 1 . . Best Kill Streak 14 | . 5 3 5 . 10 5 2 . 5 3 1 3 2 3 7 6 2 3 3 . 2 14 10 13 Combat Bots Only 12 | . 3 2 5 . 3 5 2 . 5 3 1 3 2 3 7 6 2 3 3 . 2 12 8 8 Max Kills in Single Turn 4 | . 2 2 3 . 4 1 1 . 1 1 1 1 1 1 1 1 1 2 1 . 1 3 2 3 Gunslinging 1 | . 1 . . . . . . . . . . . . . . . . . . . . . . . Exploded 1 | . 1 1 . . 1 . . . . . . . . . . . . . . . . . . . Melee . | . . . . . . . . . . . . . . . . . . . . . . . . . Uniques/NPCs Destroyed . | . . . . . . . . . . . . . . . . . . . . . . . . . Combat | -11 -10 -10 -9 -9 -6 -6 -6 -6 -5 -5 -5 -5 -5 -5 -5 -4 -4 -4 -4 -4 -3 -3 -2 -1 -------- Run | Yrd Mat Sub Rec Scr Fac Low Low Dat Pro Fac Was Fac Upp Upp War Pro Fac Upp Upp Zhi Pro Res Res Acc Hostile Shots Fired 1839 | . 105 63 33 . 314 55 18 . 6 31 . 37 17 13 228 30 31 . 47 . 8 205 225 373 Missed 591 | . 35 27 9 . 123 21 10 . 4 8 . 15 4 3 81 9 12 . 14 . 2 63 56 95 Deflected 17 | . . . . . . . . . . . . . . . . . . . . . . . 3 14 Hits 1248 | . 70 36 24 . 191 34 8 . 2 23 . 22 13 10 147 21 19 . 33 . 6 142 169 278 Melee 22 | . . . . . 1 . . . . . . . . . 8 . . . 3 . . 2 8 . Projectile 1226 | . 70 36 24 . 190 34 8 . 2 23 . 22 13 10 139 21 19 . 30 . 6 140 161 278 AOE 6 | . . . 2 . . . . . . . . 1 . . . . . . . . . 2 1 . Critical Strikes 52 | . . 1 2 . 9 2 . . . . . . . . 6 . 1 . 3 . . 10 7 11 Part Disruptions 3 | . . . . . . . . . . . . . . . 1 . . . . . . . 2 . Damage Taken 19538 | . 858 408 388 . 2986 481 64 . 43 312 63 425 197 324 2651 272 133 . 396 . 118 2769 2896 3754 Core 11848 | . 704 222 229 . 2388 265 39 . 37 170 35 221 122 198 1511 134 86 . 202 . 66 1382 1613 2224 Absorbed by Shields 679 | . . . . . 256 . . . . . . . . . . . 127 . 248 . 48 . . . Redirected to Core 10606 | . 495 206 191 . 2081 237 19 . 21 154 26 221 122 161 1355 134 80 . 190 . 66 1277 1499 2071 Ignored by Resistances 7527 | . . . . . 315 100 20 . 12 90 5 278 56 99 945 92 94 . 244 . 44 1134 1633 2366 Regen/Repaired (Parts) 46 | . . . . . . . . . . . 46 . . . . . . . . . . . . . Core Remaining (%) 85 | 100 . . . 100 . . . . 100 . . . . . . 79 . . . . 100 87 98 16 Volleys Fired 689 | . 76 46 20 . 106 14 5 . 10 21 5 28 9 15 25 17 20 4 18 . 9 89 83 69 Largest 5 | . 3 3 3 . 4 4 4 . 4 4 4 4 4 4 4 5 5 5 5 . 5 5 4 4 Hottest 431 | . 152 152 134 . 320 350 350 . 350 350 350 363 376 376 376 431 431 431 431 . 431 431 370 400 Shots Fired 2384 | . 171 64 40 . 336 54 22 . 35 78 20 109 36 60 100 73 84 20 90 . 37 414 305 236 Gun 251 | . 171 27 3 . 42 8 . . . . . . . . . . . . . . . . . . Cannon 2113 | . . 17 37 . 294 46 22 . 35 78 20 109 36 60 100 73 84 20 90 . 37 414 305 236 Launcher . | . . . . . . . . . . . . . . . . . . . . . . . . . Special 20 | . . 20 . . . . . . . . . . . . . . . . . . . . . . Kinetic 562 | . 123 17 23 . 104 . . . . . . . . . . 17 16 4 18 . 8 82 83 67 Thermal 1748 | . 16 38 17 . 209 44 22 . 35 78 20 109 36 60 100 56 68 16 72 . 29 332 222 169 Explosive . | . . . . . . . . . . . . . . . . . . . . . . . . . Electromagnetic 74 | . 32 9 . . 23 10 . . . . . . . . . . . . . . . . . . Robot Hit Streak 47 | . 11 8 8 . 13 18 5 . 17 26 8 27 7 10 24 21 18 4 15 . 13 47 31 38 Robot Miss Streak 5 | . 4 2 3 . 5 2 3 . 1 1 2 3 2 2 1 2 1 2 2 . 1 5 2 2 Penetration Max 1 | . . . . . . . . . . . . . . . . . . . . . . . . 1 Secondary Targets 5 | . 4 1 . . . . . . . . . . . . . . . . . . . . . . Max Gunslinging Chain 1 | . 1 1 . . . . . . . . . . . . . . . . . . . . . . Shots Hit Robots 1479 | . 103 18 24 . 206 30 11 . 19 55 15 68 18 40 67 54 52 8 56 . 26 246 202 161 Core Hits 616 | . 49 6 13 . 91 16 5 . 15 14 1 25 9 20 28 20 18 7 17 . 12 96 85 69 Critical Kills 28 | . . . . . . . 1 . . . 1 6 . . . 1 . . 2 . . 6 5 6 Critical Parts Destroyed 1 | . 1 . . . . . . . . . . . . . . . . . . . . . . . Critical Strikes 60 | . 1 3 1 . 8 1 1 . . . 1 6 . . . 1 . . 4 . 1 10 11 11 Burn 5 | . . 3 . . 2 . . . . . . . . . . . . . . . . . . . Meltdown 28 | . . . . . . . 1 . . . 1 6 . . . 1 . . 2 . . 6 5 6 Destroy 1 | . 1 . . . . . . . . . . . . . . . . . . . . . . . Blast 24 | . . . 1 . 5 . . . . . . . . . . . . . 2 . 1 4 6 5 Corrupt 2 | . . . . . 1 1 . . . . . . . . . . . . . . . . . . Melee Attacks . | . . . . . . . . . . . . . . . . . . . . . . . . . Impact . | . . . . . . . . . . . . . . . . . . . . . . . . . Slashing . | . . . . . . . . . . . . . . . . . . . . . . . . . Piercing . | . . . . . . . . . . . . . . . . . . . . . . . . . Sneak Attacks . | . . . . . . . . . . . . . . . . . . . . . . . . . Combat Hostiles . | . . . . . . . . . . . . . . . . . . . . . . . . . Follow-up Attacks . | . . . . . . . . . . . . . . . . . . . . . . . . . Damage Inflicted 63953 | . 1694 328 673 . 6850 984 341 . 783 1862 560 2617 610 1434 2370 1763 1835 291 2391 . 1153 12982 12478 9954 Guns 2499 | . 1394 275 71 . 627 132 . . . . . . . . . . . . . . . . . . Cannons 59233 | . . . 602 . 4859 852 341 . 783 1862 560 2568 610 1434 2370 1763 1776 291 2391 . 1153 12897 12364 9757 Explosions 1831 | . 281 53 . . 1323 . . . . . . . . . . . . . . . . . . 174 Melee . | . . . . . . . . . . . . . . . . . . . . . . . . . Ramming 390 | . 19 . . . 41 . . . . . . 49 . . . . 59 . . . . 85 114 23 Kinetic 12125 | . 1002 . 413 . 1545 . . . . . . . . . . 393 178 24 413 . 113 1283 3596 3165 Thermal 49334 | . 399 255 260 . 3732 759 341 . 783 1862 560 2568 610 1434 2370 1370 1598 267 1978 . 1040 11614 8768 6766 Explosive 1130 | . . . . . 1130 . . . . . . . . . . . . . . . . . . . Electromagnetic 974 | . 274 73 . . 402 225 . . . . . . . . . . . . . . . . . . Impact . | . . . . . . . . . . . . . . . . . . . . . . . . . Slashing . | . . . . . . . . . . . . . . . . . . . . . . . . . Piercing . | . . . . . . . . . . . . . . . . . . . . . . . . . Highest Corruption 2 | . . . 2 . 2 2 2 2 2 . . . . . . . . . . . . 1 1 2 Average Corruption 1 | . . . 1 . 1 2 2 2 2 . . . . . . . . . . . . 1 1 1 Corruption Purged . | . . . . . . . . . . . . . . . . . . . . . . . . . Corruption Blocked . | . . . . . . . . . . . . . . . . . . . . . . . . . Effects 79 | . . . 10 . 4 8 16 . 20 . . . . . . . . . . . . 3 13 5 Message Errors 19 | . . . . . . 4 5 . 5 . . . . . . . . . . . . . 5 . Matter Fused 10 | . . . 1 . 2 1 1 . 2 . . . . . . . . . . . . . 3 . Heat Flow Errors 18 | . . . 5 . 1 1 3 . 4 . . . . . . . . . . . . 1 2 1 Energy Discharges 9 | . . . 1 . 1 1 1 . 4 . . . . . . . . . . . . . . 1 Parts Rejected 1 | . . . . . . . . . 1 . . . . . . . . . . . . . . . Parts Fused 1 | . . . . . . . 1 . . . . . . . . . . . . . . . . . Data Loss (minor) 8 | . . . 1 . . . 3 . 2 . . . . . . . . . . . . 1 1 . Data Loss (major) 6 | . . . 1 . . 1 . . 1 . . . . . . . . . . . . 1 . 2 Misfires 4 | . . . . . . . 2 . 1 . . . . . . . . . . . . . 1 . Alerts 1 | . . . 1 . . . . . . . . . . . . . . . . . . . . . Weapon Failures 2 | . . . . . . . . . . . . . . . . . . . . . . . 1 1 Overload Shots . | . . . . . . . . . . . . . . . . . . . . . . . . . Overflow Damage 2315 | . 10 . 31 . 208 . . . 35 54 . 103 . 59 35 27 27 . 80 . . 400 834 412 Projectiles 2092 | . . . 31 . 46 . . . 35 54 . 102 . 59 35 27 27 . 80 . . 378 806 412 Explosions 172 | . 10 . . . 162 . . . . . . . . . . . . . . . . . . . Melee 51 | . . . . . . . . . . . . 1 . . . . . . . . . 22 28 . Knockbacks 70 | . . . 3 . 25 . . . . . . 1 . . . 1 . . 4 . . 8 17 11 Impact 5 | . . . . . 2 . . . . . . 1 . . . . . . . . . 1 1 . Kinetic 61 | . . . 3 . 23 . . . . . . . . . . 1 . . 4 . . 7 15 8 Secondary 4 | . . . . . . . . . . . . . . . . . . . . . . . 1 3 Self-Inflicted Damage 69 | . 58 11 . . . . . . . . . . . . . . . . . . . . . . Shots 3 | . 2 1 . . . . . . . . . . . . . . . . . . . . . . Rammed 2 | . 2 . . . . . . . . . . . . . . . . . . . . . . . Targets Rammed 33 | . 5 . . . 11 . . . . . . 5 . . . . 3 . . . . 3 5 1 Kicked 31 | . 3 . . . 11 . . . . . . 5 . . . . 3 . . . . 3 5 1 Crushed . | . . . . . . . . . . . . . . . . . . . . . . . . . Highest Temperature 388 | . 242 141 224 . 354 300 187 . 355 200 210 288 200 125 199 193 221 84 181 . 114 388 273 68 Average Temperature 88 | . 43 78 46 . 94 125 88 . 119 104 106 114 92 57 108 107 87 56 71 . 56 106 40 18 Received Heat Transfer 4019 | . 378 138 78 . 942 177 6 . 18 18 . 117 . 87 420 57 3 . 55 . 12 673 303 537 Effects 9 | . . . . . 1 . . . . 3 . 1 3 . . . . . . . . 1 . . Shutdowns 1 | . . . . . 1 . . . . . . . . . . . . . . . . . . . Energy Bleed 1 | . . . . . . . . . . . . 1 . . . . . . . . . . . . Interference 6 | . . . . . . . . . . 3 . . 3 . . . . . . . . . . . Matter Decay 1 | . . . . . . . . . . . . . . . . . . . . . . 1 . . Siege Activations . | . . . . . . . . . . . . . . . . . . . . . . . . . Martial Activations . | . . . . . . . . . . . . . . . . . . . . . . . . . Shielding Activations 6 | . . . . . . . . . . . . . . . . . . . . . . . 1 5 Total Turns 174 | . . . . . . . . . . . . . . . . . . . . . . . 49 125 Longest Duration 53 | . . . . . . . . . . . . . . . . . . . . . . . 49 53 Robots Disrupted . | . . . . . . . . . . . . . . . . . . . . . . . . . Combat Hostiles . | . . . . . . . . . . . . . . . . . . . . . . . . . Robots Corrupted 3 | . . . . . . . . . . . . 1 . . . . . . . . . 1 1 . Combat Hostiles 1 | . . . . . . . . . . . . . . . . . . . . . . . 1 . Parts Fried 10 | . . . . . 1 . . . 1 . . 1 . 1 1 1 . 1 . . . 2 1 . Impact Corruptions 4 | . . . . . . . . . . . . 1 . . . . . . . . . 1 2 . Robots Melted 32 | . . . . . . . 1 . . 2 1 6 . . . 1 1 . 2 . . 6 6 6 Combat Hostiles 31 | . . . . . . . 1 . . 2 1 6 . . . . 1 . 2 . . 6 6 6 Parts Melted 127 | . . . . . 11 2 2 . . 6 3 11 2 4 9 1 5 1 7 . 1 30 20 12 Heat Transferred 50464 | . 596 790 435 . 5783 1040 370 . 888 2109 629 2766 835 1865 2990 1740 2040 361 2275 . 970 10497 7105 4380 Parts Sabotaged 2 | . . . . . . . . . . . . . . . . . . . . . . . 2 . Parts Stolen . | . . . . . . . . . . . . . . . . . . . . . . . . . Parts Stripped . | . . . . . . . . . . . . . . . . . . . . . . . . . Power Chain Reactions 6 | . 4 1 . . 1 . . . . . . . . . . . . . . . . . . . Alert | -11 -10 -10 -9 -9 -6 -6 -6 -6 -5 -5 -5 -5 -5 -5 -5 -4 -4 -4 -4 -4 -3 -3 -2 -1 ------- Run | Yrd Mat Sub Rec Scr Fac Low Low Dat Pro Fac Was Fac Upp Upp War Pro Fac Upp Upp Zhi Pro Res Res Acc Maximum Alert Level 5 | . 1 . 1 . 2 . . . . 2 1 3 . . . . 2 . . . . 5 5 5 Low Security (%) 43 | 100 93 . 76 . 48 . . . . 63 89 19 . . . . 66 . . . . 16 . . Level 1 15 | . 6 . 23 . 32 . . . . 29 10 32 . . . . 15 . . . . . . . Level 2 9 | . . . . . 19 . . . . 7 . 30 . . . . 18 . . . . 9 . . Level 3 6 | . . . . . . . . . . . . 16 . . . . . . . . . 8 34 . Level 4 15 | . . . . . . . . . . . . . . . . . . . . . . 50 18 69 Level 5 9 | . . . . . . . . . . . . . . . . . . . . . . 13 46 30 High Security . | . . . . . . . . . . . . . . . . . . . . . . . . . Max Security . | . . . . . . . . . . . . . . . . . . . . . . . . . Peak Influence 2273 | . 225 . 305 . 453 . . . . 424 208 779 . . . . 629 . . . . 1712 2156 2273 Initial 1291 | . . . 13 . . . . . . 49 142 124 . . . . 84 . . . . 29 960 1291 Average 552 | . 78 . 143 . 193 . . . . 168 169 400 . . . . 173 . . . . 1043 1438 1448 Influence Increases 18744 | . 781 543 746 . 1495 205 115 . 596 896 116 1773 315 682 487 559 1364 198 902 . 455 2804 2166 1546 Destroy 0b10 Robot/C 9940 | . 400 160 320 . 740 180 80 . 360 460 . 620 200 380 360 400 560 120 560 . 260 1520 1320 940 Destroy 0b10 Robot/NC 565 | . 55 . 45 . 80 . . . 10 10 . 40 5 5 5 5 55 . . . 5 80 100 65 Destroy Leader 1700 | . 100 10 . . 174 10 20 . 30 100 . 158 20 40 . 50 156 20 50 . 10 298 260 194 Allied During Kill 3281 | . . 73 158 . 72 . . . 196 224 . 614 90 257 92 104 267 58 277 . 180 380 192 47 Successful Hack 153 | . 32 . 10 . 28 . . . . . . 14 . . . . . . . . . 24 . 45 Select Force Hacks 360 | . 150 . 210 . . . . . . . . . . . . . . . . . . . . . Disable Machine 645 | . 15 . . . 285 . . . . 30 . 150 . . . . 90 . . . . 45 15 15 Anti-Garrison Action 150 | . . . . . . . . . . . . . . . . . . . . . . 150 . . Destroy Structure 1305 | . 14 . 3 . 71 . . . . 72 116 162 . . . . 146 . . . . 232 264 225 Lose Combat Pursuer 645 | . 15 300 . . 45 15 15 . . . . 15 . . 30 . 90 . 15 . . 75 15 15 Influence Decreases 16475 | . 572 724 487 287 1188 439 188 . 518 566 346 1180 804 589 521 766 1083 608 527 380 411 1139 1723 1429 Entered New Map 4150 | . . 101 15 287 . 115 15 . . 29 266 54 286 55 375 341 50 154 2 380 . 15 749 861 Time Decay 8281 | . 422 583 412 . 580 318 173 . 458 267 60 526 478 434 66 345 423 434 445 . 371 474 534 478 Lost Part 10 | . . . . . . . . . . . . . . . . . . . . . . . . 10 Lost Ally 1784 | . . 40 60 . 158 6 . . 60 120 20 300 40 100 80 80 160 20 80 . 40 200 140 80 Purge Threat 2250 | . 150 . . . 450 . . . . 150 . 300 . . . . 450 . . . . 450 300 . Squads Dispatched 101 | . 6 . . . 16 . . . 1 10 . 6 . 1 . . 11 . 1 . . 17 20 12 Investigation 16 | . 4 . . . 4 . . . . . . 2 . . . . 1 . . . . 1 2 2 Extermination 24 | . . . . . 5 . . . . 1 . 3 . . . . 3 . . . . 5 4 3 Reinforcement 29 | . 2 . . . 6 . . . . 5 . 1 . . . . 2 . . . . 4 6 3 Assault 21 | . . . . . 1 . . . 1 . . . . 1 . . 2 . 1 . . 6 8 1 Garrison 11 | . . . . . . . . . . 4 . . . . . . 3 . . . . 1 . 3 Intercept . | . . . . . . . . . . . . . . . . . . . . . . . . . Searches Triggered . | . . . . . . . . . . . . . . . . . . . . . . . . . Data Miner Redirects 6 | . . . . . . . . . . . . . . . . . 1 . . . . 1 2 2 Construction Impeded 11 | . . . . . 1 . . . . 2 . 1 . . . . 2 . . . . 2 3 . Haulers Reinforced 2 | . . . . . 1 . . . . 1 . . . . . . . . . . . . . . Active Scanning Responses . | . . . . . . . . . . . . . . . . . . . . . . . . . Cargo Convoy Interrupts . | . . . . . . . . . . . . . . . . . . . . . . . . . Stealth | -11 -10 -10 -9 -9 -6 -6 -6 -6 -5 -5 -5 -5 -5 -5 -5 -4 -4 -4 -4 -4 -3 -3 -2 -1 --------- Run | Yrd Mat Sub Rec Scr Fac Low Low Dat Pro Fac Was Fac Upp Upp War Pro Fac Upp Upp Zhi Pro Res Res Acc Distress Signals 32 | . 2 . . . 1 . . . . 1 . 2 . . . . 5 . . . . 8 6 7 Communications Jammed 4 | . . . . . 4 . . . . . . . . . . . . . . . . . . . Distress Signals 4 | . . . . . 4 . . . . . . . . . . . . . . . . . . . Times Spotted 630 | . 32 43 16 . 49 10 6 . 17 21 4 32 6 20 53 18 33 6 25 . 8 92 74 65 Peak Tracking Total 19 | . 5 6 6 . 4 5 3 . 7 5 3 5 7 7 19 11 4 4 7 . 5 7 6 8 Tactical Retreats 20 | . 1 2 . . 1 1 1 . . . . 1 . . 1 . 6 . 1 . . 3 1 1 Traps | -11 -10 -10 -9 -9 -6 -6 -6 -6 -5 -5 -5 -5 -5 -5 -5 -4 -4 -4 -4 -4 -3 -3 -2 -1 ------- Run | Yrd Mat Sub Rec Scr Fac Low Low Dat Pro Fac Was Fac Upp Upp War Pro Fac Upp Upp Zhi Pro Res Res Acc Traps Triggered 17 | . 1 . . . 4 2 . . . 1 . 3 . . . . . . . . . 3 3 . Indirectly . | . . . . . . . . . . . . . . . . . . . . . . . . . Trap Hack Attempts . | . . . . . . . . . . . . . . . . . . . . . . . . . Triggered . | . . . . . . . . . . . . . . . . . . . . . . . . . Disarmed . | . . . . . . . . . . . . . . . . . . . . . . . . . Reprogrammed . | . . . . . . . . . . . . . . . . . . . . . . . . . Reused . | . . . . . . . . . . . . . . . . . . . . . . . . . Traps Extracted . | . . . . . . . . . . . . . . . . . . . . . . . . . Installed . | . . . . . . . . . . . . . . . . . . . . . . . . . Triggered . | . . . . . . . . . . . . . . . . . . . . . . . . . Machines | -11 -10 -10 -9 -9 -6 -6 -6 -6 -5 -5 -5 -5 -5 -5 -5 -4 -4 -4 -4 -4 -3 -3 -2 -1 ---------- Run | Yrd Mat Sub Rec Scr Fac Low Low Dat Pro Fac Was Fac Upp Upp War Pro Fac Upp Upp Zhi Pro Res Res Acc Machines Disabled 55 | . 2 2 . . 19 1 . . 1 2 . 10 . 3 . . 6 . 1 . 2 4 1 1 Max in Single Turn 7 | . 1 1 . . 7 1 . . 1 . . 1 . 1 . . 1 . 1 . 1 1 1 1 Garrison Access 2 | . . . . . . . . . . . . . . . . . 1 . . . . 1 . . Energy Cycler 1 | . . . . . . . . . . . . . . . . . . . . . . . . 1 Machines Repaired . | . . . . . . . . . . . . . . . . . . . . . . . . . Machines Dismantled . | . . . . . . . . . . . . . . . . . . . . . . . . . Machines Sabotaged 3 | . 3 . . . . . . . . . . . . . . . . . . . . . . . Overloaded Fab Kills . | . . . . . . . . . . . . . . . . . . . . . . . . . Hacking | -11 -10 -10 -9 -9 -6 -6 -6 -6 -5 -5 -5 -5 -5 -5 -5 -4 -4 -4 -4 -4 -3 -3 -2 -1 --------- Run | Yrd Mat Sub Rec Scr Fac Low Low Dat Pro Fac Was Fac Upp Upp War Pro Fac Upp Upp Zhi Pro Res Res Acc Machines Accessed 70 | . 6 2 13 2 8 1 . 4 . . . 4 . . 2 . 2 2 . 5 1 9 4 5 Terminals 41 | . 6 . 6 . 6 . . . . . . 4 . . . . 2 . . . 1 9 3 4 Fabricators . | . . . . . . . . . . . . . . . . . . . . . . . . . Repair Stations . | . . . . . . . . . . . . . . . . . . . . . . . . . Recycling Units 11 | . . . 7 . 2 . . . . . . . . . . . . . . . . . 1 1 Scanalyzers . | . . . . . . . . . . . . . . . . . . . . . . . . . Garrison Access . | . . . . . . . . . . . . . . . . . . . . . . . . . Total Hacks 201 | . 20 6 25 10 22 1 . 25 . 3 . 11 . . 3 . 13 2 . 18 3 21 7 11 Successful 138 | . 14 6 23 10 12 1 . 25 . 2 . 2 . . 3 . 2 2 . 18 3 9 1 5 Failed 63 | . 6 . 2 . 10 . . . . 1 . 9 . . . . 11 . . . . 12 6 6 Catastrophic 15 | . . . . . 3 . . . . . . 4 . . . . . . . . . 4 3 1 Database Lockouts . | . . . . . . . . . . . . . . . . . . . . . . . . . Manual 107 | . 14 . 16 . 19 . . . . 3 . 10 . . 1 . 12 . . . . 15 7 10 Terminals 112 | . 20 . 9 . 17 . . . . 3 . 11 . . . . 13 . . . 3 21 5 10 Fabricators . | . . . . . . . . . . . . . . . . . . . . . . . . . Repair Stations . | . . . . . . . . . . . . . . . . . . . . . . . . . Recycling Units 24 | . . . 16 . 5 . . . . . . . . . . . . . . . . . 2 1 Scanalyzers . | . . . . . . . . . . . . . . . . . . . . . . . . . Garrison Access . | . . . . . . . . . . . . . . . . . . . . . . . . . Terminal Hacks 87 | . 5 6 1 10 4 1 . 25 . 1 . 1 . . 3 . 1 2 . 18 3 4 . 2 Record 32 | . . 5 . 9 . . . 7 . . . . . . 2 . . . . 6 3 . . . Part Schematic 16 | . . . . . . . . 12 . . . . . . . . . . . 4 . . . . Robot Schematic 3 | . . . . . . . . 3 . . . . . . . . . . . . . . . . Robot Analysis 4 | . . . . . . . . . . . . . . . . . . . . 4 . . . . Prototype ID Bank 7 | . . . . . . . . 3 . . . . . . . . . . . 4 . . . . Open Door 5 | . . . . . . 1 . . . . . . . . 1 . . 2 . . . . . 1 Terminal Index 8 | . 1 . 1 . 1 . . . . 1 . 1 . . . . 1 . . . . 1 . 1 Alert Level 1 | . . . . . . . . . . . . . . . . . . . . . . 1 . . Unreport Threat 5 | . 1 . . . 3 . . . . . . . . . . . . . . . . 1 . . Locate Traps 3 | . 2 . . . . . . . . . . . . . . . . . . . . 1 . . Zone Layout 1 | . 1 . . . . . . . . . . . . . . . . . . . . . . . Proto ID Catalog 2 | . . 1 . 1 . . . . . . . . . . . . . . . . . . . . Fabricator Hacks . | . . . . . . . . . . . . . . . . . . . . . . . . . Repair Station Hacks . | . . . . . . . . . . . . . . . . . . . . . . . . . Recycling Unit Hacks 10 | . . . 8 . 2 . . . . . . . . . . . . . . . . . . . Report Inventory 9 | . . . 7 . 2 . . . . . . . . . . . . . . . . . . . Retrieve Components 1 | . . . 1 . . . . . . . . . . . . . . . . . . . . . Scanalyzer . | . . . . . . . . . . . . . . . . . . . . . . . . . Garrison Access Hacks . | . . . . . . . . . . . . . . . . . . . . . . . . . Unauthorized Hacks 41 | . 9 . 14 . 6 . . . . 1 . 1 . . . . 1 . . . . 5 1 3 Terminals 30 | . 9 . 7 . 4 . . . . 1 . 1 . . . . 1 . . . . 5 . 2 Botnet 25 | . 5 . 6 . 4 . . . . 1 . 1 . . . . 1 . . . . 5 . 2 Sabotage 5 | . 4 . 1 . . . . . . . . . . . . . . . . . . . . . Fabricators . | . . . . . . . . . . . . . . . . . . . . . . . . . Repair Stations . | . . . . . . . . . . . . . . . . . . . . . . . . . Recycling Units 11 | . . . 7 . 2 . . . . . . . . . . . . . . . . . 1 1 Tunnel 7 | . . . 7 . . . . . . . . . . . . . . . . . . . . . Fedlink 2 | . . . . . 2 . . . . . . . . . . . . . . . . . . . Scrapoids 2 | . . . . . . . . . . . . . . . . . . . . . . . 1 1 Scanalyzers . | . . . . . . . . . . . . . . . . . . . . . . . . . Garrison Access . | . . . . . . . . . . . . . . . . . . . . . . . . . Data Cores Recovered 8 | . 1 . . . . . . . . 1 . 2 . . . . 2 . . . . . 1 1 Used 4 | . . . . . . . . . . 1 . 1 . . . . 1 . . . . . 1 . Hacking Detections 39 | . 3 . 4 . 7 . . . . . . 4 . . . . 5 . . . 1 9 3 3 Full Trace Events 7 | . . . . . 2 . . . . . . 2 . . . . 1 . . . . . 1 1 Feedback Events . | . . . . . . . . . . . . . . . . . . . . . . . . . Feedback Blocked . | . . . . . . . . . . . . . . . . . . . . . . . . . Robot Schematics Acquired 3 | . . . . . . . . 3 . . . . . . . . . . . . . . . . Robots Built . | . . . . . . . . . . . . . . . . . . . . . . . . . Authchips . | . . . . . . . . . . . . . . . . . . . . . . . . . Time . | . . . . . . . . . . . . . . . . . . . . . . . . . Total Robot Build Rating . | . . . . . . . . . . . . . . . . . . . . . . . . . Part Schematics Acquired 16 | . . . . . . . . 12 . . . . . . . . . . . 4 . . . . Parts Built . | . . . . . . . . . . . . . . . . . . . . . . . . . Authchips . | . . . . . . . . . . . . . . . . . . . . . . . . . Time . | . . . . . . . . . . . . . . . . . . . . . . . . . Total Part Build Rating . | . . . . . . . . . . . . . . . . . . . . . . . . . Part Studies Acquired . | . . . . . . . . . . . . . . . . . . . . . . . . . Parts Repaired . | . . . . . . . . . . . . . . . . . . . . . . . . . Time . | . . . . . . . . . . . . . . . . . . . . . . . . . Parts Recycled . | . . . . . . . . . . . . . . . . . . . . . . . . . Recycled Matter . | . . . . . . . . . . . . . . . . . . . . . . . . . Retrieved Matter . | . . . . . . . . . . . . . . . . . . . . . . . . . Retrieved Components 8 | . . . 8 . . . . . . . . . . . . . . . . . . . . . Parts Scanalyzed . | . . . . . . . . . . . . . . . . . . . . . . . . . Part Schematics Acquired . | . . . . . . . . . . . . . . . . . . . . . . . . . Parts Damaged . | . . . . . . . . . . . . . . . . . . . . . . . . . Bothacking | -11 -10 -10 -9 -9 -6 -6 -6 -6 -5 -5 -5 -5 -5 -5 -5 -4 -4 -4 -4 -4 -3 -3 -2 -1 ------------ Run | Yrd Mat Sub Rec Scr Fac Low Low Dat Pro Fac Was Fac Upp Upp War Pro Fac Upp Upp Zhi Pro Res Res Acc Used RIF Installer . | . . . . . . . . . . . . . . . . . . . . . . . . . Robots Hacked . | . . . . . . . . . . . . . . . . . . . . . . . . . Non-combat . | . . . . . . . . . . . . . . . . . . . . . . . . . Combat . | . . . . . . . . . . . . . . . . . . . . . . . . . Robot Hacks Applied . | . . . . . . . . . . . . . . . . . . . . . . . . . Relay Couplers Released 4 | . . . . . . . . . . . . 1 . . . . 1 . . . . 1 1 . Machine Destruction 2 | . . . . . . . . . . . . . . . . . 1 . . . . 1 . . Programmers 2 | . . . . . . . . . . . . 1 . . . . . . . . . . 1 . Fabnet Peak Effective % . | . . . . . . . . . . . . . . . . . . . . . . . . . Robots Rewired 23 | . . . 12 . . 1 . . 2 . . . 2 2 . 2 . . 2 . . . . . Allies Hacked 2 | . . . . . . . . . . . . 1 . . 1 . . . . . . . . . Hacks Repelled 3 | . . . . . . . . . . . . 1 . . . . . . . . . 2 . . Allies | -11 -10 -10 -9 -9 -6 -6 -6 -6 -5 -5 -5 -5 -5 -5 -5 -4 -4 -4 -4 -4 -3 -3 -2 -1 -------- Run | Yrd Mat Sub Rec Scr Fac Low Low Dat Pro Fac Was Fac Upp Upp War Pro Fac Upp Upp Zhi Pro Res Res Acc Total Allies 151 | . . 16 12 . . 1 4 . 8 6 19 10 8 10 . 9 10 5 7 . 4 6 11 5 Largest Group 20 | . . 14 17 17 17 1 4 4 6 6 20 17 6 8 7 4 5 4 6 6 6 6 5 5 Highest-Rated Group 876 | . . 267 256 256 256 32 324 324 371 399 720 876 416 472 401 324 354 324 419 419 419 419 323 320 Highest-Rated Ally 81 | . . 20 27 27 27 32 81 81 81 81 50 81 81 81 81 81 81 81 81 81 81 81 81 64 Initial UFD Resources 48 | . . . . . 23 37 37 37 41 41 41 41 41 41 41 43 43 43 43 43 45 45 47 48 Total Orders 5 | . . . . 3 . . . . . . . . . . . . . . . . . . 2 . STAY 3 | . . . . 2 . . . . . . . . . . . . . . . . . . 1 . FOLLOW 2 | . . . . 1 . . . . . . . . . . . . . . . . . . 1 . Ally Attacks 1150 | . . 64 37 . 95 4 . . 60 60 118 119 26 45 27 36 101 16 77 . 20 106 82 57 Total Damage 42836 | . . 973 609 . 1672 80 . . 2359 3003 4317 5058 1216 2823 2079 1435 3994 739 2185 . 1209 4409 3086 1590 Kills 247 | . . 10 12 . 8 . . . 12 17 7 29 7 13 9 13 30 2 19 . 9 25 21 4 Allies Corrupted 6 | . . . . . . . . . . . . 2 . . 1 1 1 . . . . . . 1 Allies Melted 1 | . . . . . . . . . 1 . . . . . . . . . . . . . . . Intel | -11 -10 -10 -9 -9 -6 -6 -6 -6 -5 -5 -5 -5 -5 -5 -5 -4 -4 -4 -4 -4 -3 -3 -2 -1 ------- Run | Yrd Mat Sub Rec Scr Fac Low Low Dat Pro Fac Was Fac Upp Upp War Pro Fac Upp Upp Zhi Pro Res Res Acc Active Infowar (turns) 1031 | . . . . . 1031 . . . . . . . . . . . . . . . . . . . Jamming 1031 | . . . . . 1031 . . . . . . . . . . . . . . . . . . . Robot Analysis Total 4 | . . . . . . . . . . . . . . . . . . . . 4 . . . . Derelict Logs Recovered 12 | . . 1 . 1 . 3 1 . 1 . . . 2 . . 1 . 1 1 . . . . . Drone Launches . | . . . . . . . . . . . . . . . . . . . . . . . . . Drone Recoveries . | . . . . . . . . . . . . . . . . . . . . . . . . . Exploration | -11 -10 -10 -9 -9 -6 -6 -6 -6 -5 -5 -5 -5 -5 -5 -5 -4 -4 -4 -4 -4 -3 -3 -2 -1 ------------- Run | Yrd Mat Sub Rec Scr Fac Low Low Dat Pro Fac Was Fac Upp Upp War Pro Fac Upp Upp Zhi Pro Res Res Acc Turns Passed 30810 | 57 1575 3040 1716 2178 2382 717 1214 140 1271 618 138 1469 1238 1076 1092 892 1342 1074 1357 243 1362 1885 1508 1226 Spaces Moved 21112 | 69 1198 1701 1053 1769 1450 502 967 105 908 394 77 976 952 748 828 632 971 859 1014 187 1063 1192 779 718 Core 20 | 17 3 . . . . . . . . . . . . . . . . . . . . . . . Treads . | . . . . . . . . . . . . . . . . . . . . . . . . . Legs 20473 | . 628 1701 1053 1769 1450 502 967 105 908 394 77 976 952 748 828 632 971 859 1014 187 1063 1192 779 718 Wheels 619 | 52 567 . . . . . . . . . . . . . . . . . . . . . . . Hover . | . . . . . . . . . . . . . . . . . . . . . . . . . Flight . | . . . . . . . . . . . . . . . . . . . . . . . . . Fastest Speed 50 | 50 80 120 120 120 120 122 122 122 122 121 120 120 120 120 110 110 108 120 120 120 120 120 120 124 Average Speed 123 | 72 101 157 145 120 121 122 122 122 122 121 120 120 120 120 117 110 118 120 120 120 120 120 121 124 Slowest Speed 195 | 80 120 190 190 120 195 192 122 122 192 192 121 178 120 120 170 110 185 120 120 120 120 120 195 124 Overloaded Moves . | . . . . . . . . . . . . . . . . . . . . . . . . . Propulsion Burnouts . | . . . . . . . . . . . . . . . . . . . . . . . . . Robots Hopped 1 | . . . . . . . . . . . . . . . . . . . . . . . 1 . Potential Cave-ins . | . . . . . . . . . . . . . . . . . . . . . . . . . Cave-ins Triggered . | . . . . . . . . . . . . . . . . . . . . . . . . . Exploration Rate (%) 63 | 3 97 83 97 87 36 62 90 70 86 13 70 24 92 90 88 71 18 95 97 60 94 35 23 16 Regions Visited 24 Branch Regions 15 Pre-discovered Areas 15 | . . 1 7 1 . 1 . 1 . . . . . . . . . . 1 3 . . . . Known Exits Taken 18 | . . . . 1 1 1 1 1 1 . . 1 1 1 1 1 1 1 1 1 1 1 1 . Unknown Exits Taken 4 | 1 1 1 1 . . . . . . . . . . . . . . . . . . . . . Scrap Searched 47 | . . 16 . 4 . 2 3 . 1 . . . 2 6 . . . 4 4 . 5 . . . Spaces Dug 18 | . . 1 . . 2 2 . . . 2 . 1 . . . . 4 . 1 . . 3 . 2 Terrain Destroyed 459 | . 11 5 1 . 65 12 11 . 7 19 1 21 14 11 13 17 17 11 22 . 10 67 55 69 Melee . | . . . . . . . . . . . . . . . . . . . . . . . . . Projectile 396 | . . 1 1 . 29 12 11 . 7 19 1 21 14 11 13 17 17 11 22 . 10 67 55 57 AOE 63 | . 11 4 . . 36 . . . . . . . . . . . . . . . . . . 12 Terrain Rammed . | . . . . . . . . . . . . . . . . . . . . . . . . . Walls Destroyed . | . . . . . . . . . . . . . . . . . . . . . . . . . Machines Disabled . | . . . . . . . . . . . . . . . . . . . . . . . . . Actions | -11 -10 -10 -9 -9 -6 -6 -6 -6 -5 -5 -5 -5 -5 -5 -5 -4 -4 -4 -4 -4 -3 -3 -2 -1 --------- Run | Yrd Mat Sub Rec Scr Fac Low Low Dat Pro Fac Was Fac Upp Upp War Pro Fac Upp Upp Zhi Pro Res Res Acc Total 24233 | 73 1404 1970 1205 1823 1829 570 988 117 1044 486 110 1201 1025 888 886 787 1114 891 1104 205 1127 1411 1108 867 Wait 1313 | . 72 177 36 48 123 34 12 5 71 39 10 141 52 90 4 91 45 15 30 12 40 37 84 45 Move 21086 | 68 1197 1700 1052 1768 1449 501 966 104 907 394 76 975 951 747 827 631 970 858 1013 186 1062 1191 776 717 Hop 1 | . . . . . . . . . . . . . . . . . . . . . . . 1 . Pick Up 15 | . 3 1 . 1 3 2 1 . 1 1 . 1 . . 1 . . . . . . . . . Fast Attach 103 | 5 10 9 4 3 17 3 . 4 2 5 2 7 1 1 3 . 7 . 1 4 3 3 8 1 Attach 11 | . 1 1 . 1 2 2 1 . . 2 . 1 . . . . . . . . . . . . Detach 13 | . 2 . . 1 2 3 . . . 3 . 1 . . . . . . . 1 . . . . Swap 11 | . 3 2 1 . . 2 1 . 1 . 1 . . . . . . . . . . . . . Drop 76 | . 8 10 1 1 13 2 . 4 2 4 4 3 1 . 4 . 7 . . 2 2 1 6 1 Fire 689 | . 76 46 20 . 106 14 5 . 10 21 5 28 9 15 25 17 20 4 18 . 9 89 83 69 Melee . | . . . . . . . . . . . . . . . . . . . . . . . . . Ram 2 | . 2 . . . . . . . . . . . . . . . . . . . . . . . Kick 31 | . 3 . . . 11 . . . . . . 5 . . . . 3 . . . . 3 5 1 Crush . | . . . . . . . . . . . . . . . . . . . . . . . . . Escape Stasis 2 | . . . . . 2 . . . . . . . . . . . . . . . . . . . Rewire 118 | . . . 60 . . 1 . . 4 5 . . 10 9 . 12 . . 17 . . . . . Trap . | . . . . . . . . . . . . . . . . . . . . . . . . . Miscellaneous 762 | . 27 24 31 . 101 6 2 . 46 12 12 39 1 26 22 36 62 14 25 . 11 87 145 33 Route ------- -11/Scrapyard -10/Materials (discovered 6 exits: *Mat x3 / [*Min x2] / *Sub) -10/Subcaves (discovered 4 exits: *Mat x2 / *Rec / *Scr) -9/Recycling (discovered 2 exits: [*Fac] / *Scr) -9/Scraptown (discovered 2 exits: *Fac x2) -6/Factory (discovered 2 exits: *Fac / *Low) -6/Lower Caves -6/Lower Caves (discovered 2 exits: *Fac / *Dat) -6/Data Miner -5/Proximity Caves -5/Factory (discovered 3 exits: *Fac x2 / *Upp) -5/Waste -5/Factory (discovered 3 exits: *Fac x2 / *Upp) -5/Upper Caves -5/Upper Caves (discovered 2 exits: *Fac / *War) -5/Warlord -4/Proximity Caves -4/Factory (discovered 2 exits: *Upp x2) -4/Upper Caves -4/Upper Caves (discovered 2 exits: *Res / *Zhi) -4/Zhirov -3/Proximity Caves -3/Research (discovered 2 exits: *Res / *Tes) -2/Research -1/Access To Epsilon Eridani History --------- Turn | Location | Event 3 | -11/Scrapyard | Upgraded with Propulsion slot (x1) 3 | -11/Scrapyard | Upgraded with Utility slot (x1) 3 | -11/Scrapyard | Upgraded with Weapon slot (x1) 19 | -11/Scrapyard | Discovered new exit (range 16) 58 | -11/Scrapyard | Entered Materials 158 | -10/Materials | Core integrity fell below 50% 307 | -10/Materials | Build established: Mutant 407 | -10/Materials | Discovered new exit (range 16) 503 | -10/Materials | Reached level 2 521 | -10/Materials | Upgraded with Weapon slot (x1) 566 | -10/Materials | Upgraded with Utility slot (x1) 612 | -10/Materials | Discovered new exit (range 7) 619 | -10/Materials | Identified exit to Materials 752 | -10/Materials | Discovered exit to Materials (range 16) 818 | -10/Materials | Build established: Gunner 829 | -10/Materials | Discovered exit to Materials (range 16) 1052 | -10/Materials | Discovered new exit (range 9) 1293 | -10/Materials | Build established: Tank 1390 | -10/Materials | Discovered new exit (range 10) 1528 | -10/Materials | Reached level 3 1633 | -10/Materials | Entered Subcaves 1634 | -10/Subcaves | Approached by a straggling Scientist 1677 | -10/Subcaves | Learned location of Zion (-7) 1677 | -10/Subcaves | Met a Zionite searching for "candidates" 1806 | -10/Subcaves | Visited triangular shrine 1815 | -10/Subcaves | Found Prototype Device 1815 | -10/Subcaves | Identified V3-11A's Pendant 1820 | -10/Subcaves | Befriended Subdweller 1971 | -10/Subcaves | Discovered new exit (range 16) 1980 | -10/Subcaves | Befriended Subdweller 1995 | -10/Subcaves | Reached level 4 2044 | -10/Subcaves | Identified exit to Materials 2215 | -10/Subcaves | Befriended Subdweller 2215 | -10/Subcaves | Befriended Subdweller 2216 | -10/Subcaves | Scientist uncovered a shortcut to Scraptown 2290 | -10/Subcaves | Befriended Subdweller 2384 | -10/Subcaves | Build established: Gunner 2385 | -10/Subcaves | Befriended Subdweller 2470 | -10/Subcaves | Befriended Subdweller 2482 | -10/Subcaves | Ambushed by Subdwellers from Twisted Machinery 2485 | -10/Subcaves | Befriended Subdweller 2485 | -10/Subcaves | Befriended Subdweller 2553 | -10/Subcaves | A Subdweller sparked back to life 2553 | -10/Subcaves | A Subdweller sparked back to life 2553 | -10/Subcaves | A Subdweller sparked back to life 2555 | -10/Subcaves | Befriended Subdweller 2555 | -10/Subcaves | Befriended Subdweller 2555 | -10/Subcaves | Befriended Subdweller 2555 | -10/Subcaves | Befriended Subdweller 2560 | -10/Subcaves | Befriended Subdweller 2595 | -10/Subcaves | Befriended Subdweller 2595 | -10/Subcaves | Befriended Subdweller 2670 | -10/Subcaves | A swath of the cavern ceiling suddenly collapsed 2771 | -10/Subcaves | Visited 4L-MR0's lab 2778 | -10/Subcaves | Upgraded with Utility slot (x1) 2794 | -10/Subcaves | Found Power Bank 2795 | -10/Subcaves | Attached Power Bank, gained temporary slots: Power x3 2940 | -10/Subcaves | Shifting Twisted Machinery released Sub. Shrapnel Launcher 2977 | -10/Subcaves | Shifting Twisted Machinery released Sub. Monowheel 3098 | -10/Subcaves | Shifting Twisted Machinery released Mak. Hacking Suite 3100 | -10/Subcaves | Shifting Twisted Machinery released Sub. Machine Gun 3150 | -10/Subcaves | Build established: Derelict-Gunner 3610 | -10/Subcaves | Visited Clippyterm 3616 | -10/Subcaves | Learned Factory garrison access intel 4016 | -10/Subcaves | Shifting Twisted Machinery released Sub. Monowheel 4036 | -10/Subcaves | Discovered exit to Materials (range 9) 4298 | -10/Subcaves | Lost 3 allies 4673 | -10/Subcaves | Entered Recycling 4673 | -9/Recycling | Accompanied by 9 allies 4675 | -9/Recycling | Reached level 5 5110 | -9/Recycling | Reached level 6 5201 | -9/Recycling | Discovered new exit (range 13) 5449 | -9/Recycling | Upgraded with Propulsion slot (x1) 5540 | -9/Recycling | Reached level 7 5880 | -9/Recycling | Build established: Commander-Gunner 6093 | -9/Recycling | Upgraded with Propulsion slot (x1) 6271 | -9/Recycling | Upgraded with Utility slot (x1) 6271 | -9/Recycling | Found Rainbow Chip 6273 | -9/Recycling | Attached Rainbow Chip, gained temporary slots: Power, Propulsion, Utility, Weapon 6329 | -9/Recycling | Scanned before Scraplab entrance 6348 | -9/Recycling | Entered Scraplab 6359 | -9/Recycling | Discovered new exit (range 3) 6389 | -9/Recycling | Entered Scraptown 6389 | -9/Scraptown | Accompanied by 17 allies 6389 | -9/Scraptown | System corruption cleaned by C-Scrubber 6391 | -9/Scraptown | Reached level 8 6412 | -9/Scraptown | Heard Great Nut preacher, LISTEN AND RECITE! 6598 | -9/Scraptown | Delivered V3-11A's Pendant to T0-NE2 in exchange for information 6783 | -9/Scraptown | Scanned Subdweller tech in exchange for log data 6787 | -9/Scraptown | Learned location of 1 exit from Proximity Caves 6820 | -9/Scraptown | Discovered new exit (range 13) 6973 | -9/Scraptown | Visited UFD Registry 6973 | -9/Scraptown | Registered with UFD as "Toolranger" 6998 | -9/Scraptown | Visited CR-KLE's Repair Center 7018 | -9/Scraptown | Visited Comm Corps 7039 | -9/Scraptown | Visited The Evicted 7058 | -9/Scraptown | Visited Assassins FH 7426 | -9/Scraptown | Delivered Scrap Shield to a Scientist 7522 | -9/Scraptown | Visited Science Guys 7580 | -9/Scraptown | Visited Scrapoid Research Area 7630 | -9/Scraptown | Visited Infowarlord's Domain 7639 | -9/Scraptown | Found Exp. Signal Interpreter 7670 | -9/Scraptown | Visited Research Penetration Think Tank 7692 | -9/Scraptown | Visited Derelict Rescue Squad 7733 | -9/Scraptown | Visited DA-N13 Charitable Foundation 7740 | -9/Scraptown | Found DCF Scrap (29 items) 7800 | -9/Scraptown | Visited Curators Association 7888 | -9/Scraptown | Visited A0-MCA Data Center 7898 | -9/Scraptown | Given a B+ rating by A0-MCA 7903 | -9/Scraptown | Found A0-MCA's Component Scanner 7943 | -9/Scraptown | Build established: Commander-Skirmisher 8315 | -9/Scraptown | Discovered new exit (range 5) 8536 | -9/Scraptown | Identified exit to Factory 8567 | -9/Scraptown | Entered Factory 8567 | -6/Factory | Accompanied by 17 allies 8568 | -6/Factory | Loaded intel: 4 garrison access locations 8569 | -6/Factory | Reached level 9 8797 | -6/Factory | Lost 9 allies 8813 | -6/Factory | Spotted B-75 Beast 8841 | -6/Factory | Allies destroyed B-75 Beast 8858 | -6/Factory | Core integrity fell below 50% 8860 | -6/Factory | Reached level 10 8882 | -6/Factory | Lost 5 allies 8955 | -6/Factory | P-60 Hacker assimilated allied Savior 2a 9403 | -6/Factory | Build established: Hacker-Skirmisher 9439 | -6/Factory | Upgraded with Weapon slot (x1) 9570 | -6/Factory | Core integrity fell below 20% 9571 | -6/Factory | Reached level 11 9626 | -6/Factory | Reached level 12 9910 | -6/Factory | Discovered new exit (range 11) 10045 | -6/Factory | Loaded intel: 8 recycling unit locations 10156 | -6/Factory | Discovered new exit (range 6) 10161 | -6/Factory | Identified exit to Factory 10171 | -6/Factory | Identified exit to Lower Caves 10392 | -6/Factory | Reached level 13 10667 | -6/Factory | First assault squad dispatched 10949 | -6/Factory | Entered Lower Caves 10951 | -6/Lower Caves | UFD Scientist delivered a prototype 10954 | -6/Lower Caves | Found Enh. Scrap Shield 11016 | -6/Lower Caves | Learned location of Extension (-4) 11105 | -6/Lower Caves | Identified exit to Lower Caves 11124 | -6/Lower Caves | Attracted the attention of an 0b10 outpost 11138 | -6/Lower Caves | Reached level 14 11141 | -6/Lower Caves | Upgraded with Utility slot (x1) 11400 | -6/Lower Caves | Learned Factory stockpile data 11435 | -6/Lower Caves | Encountered a Warlord checkpoint 11514 | -6/Lower Caves | Build established: Tank 11551 | -6/Lower Caves | Attracted the attention of an 0b10 checkpoint 11563 | -6/Lower Caves | Spotted B-75 Beast 11666 | -6/Lower Caves | Entered another Lower Caves area 11667 | -6/Lower Caves | Encountered a Warlord checkpoint 11702 | -6/Lower Caves | Reached level 15 11730 | -6/Lower Caves | Upgraded with Utility slot (x1) 11755 | -6/Lower Caves | Attracted the attention of an 0b10 checkpoint 11937 | -6/Lower Caves | Spotted B-75 Beast 11942 | -6/Lower Caves | Destroyed B-75 Beast 12005 | -6/Lower Caves | Prototype Device suddenly appears! 12016 | -6/Lower Caves | Found Amulet of Y3-NDR 12124 | -6/Lower Caves | Joined by bewildered Wizard 12124 | -6/Lower Caves | Joined by bewildered Wizard 12125 | -6/Lower Caves | Joined by bewildered Wizard 12165 | -6/Lower Caves | Joined by bewildered Wizard 12200 | -6/Lower Caves | Discovered new exit (range 7) 12210 | -6/Lower Caves | Identified exit to Data Miner 12540 | -6/Lower Caves | Learned Factory garrison access intel 12611 | -6/Lower Caves | Discovered exit to Factory (range 7) 12880 | -6/Lower Caves | Entered Data Miner 12880 | -6/Data Miner | Accompanied by 4 allies 12883 | -6/Data Miner | Discovered new exit (range 6) 12906 | -6/Data Miner | Met Data Miner 12946 | -6/Data Miner | Learned location of Section 7 (-2) 12946 | -6/Data Miner | Acquired the access code to Warlord's prototype stash 12957 | -6/Data Miner | Received God Mode back door access code from Data Miner 13014 | -6/Data Miner | Identified exit to Proximity Caves 13020 | -6/Data Miner | Entered Proximity Caves 13020 | -5/Proximity Caves | Accompanied by 4 allies 13022 | -5/Proximity Caves | Reached level 16 13206 | -5/Proximity Caves | Joined by bewildered Wizard 13207 | -5/Proximity Caves | Joined by bewildered Wizard 13209 | -5/Proximity Caves | Joined by bewildered Wizard 13252 | -5/Proximity Caves | Joined by bewildered Wizard 13285 | -5/Proximity Caves | Attracted the attention of an 0b10 outpost 13295 | -5/Proximity Caves | Reached level 17 13307 | -5/Proximity Caves | Joined by bewildered Wizard 13531 | -5/Proximity Caves | Reached level 18 13534 | -5/Proximity Caves | Upgraded with Propulsion slot (x1) 13575 | -5/Proximity Caves | Joined by bewildered Wizard 13787 | -5/Proximity Caves | Learned location of 1 exit from Factory 14291 | -5/Proximity Caves | Entered Factory 14291 | -5/Factory | Accompanied by 5 allies 14292 | -5/Factory | Identified exit to Factory 14293 | -5/Factory | Reached level 19 14294 | -5/Factory | Loaded intel: 4 garrison access locations 14315 | -5/Factory | Upgraded with Utility slot (x1) 14371 | -5/Factory | Joined by bewildered Wizard 14421 | -5/Factory | Spotted B-75 Beast 14433 | -5/Factory | Reached level 20 14433 | -5/Factory | Destroyed B-75 Beast 14463 | -5/Factory | Lost 3 allies 14468 | -5/Factory | Upgraded with Propulsion slot (x1) 14473 | -5/Factory | Garrison activated, responded to threat 14481 | -5/Factory | Joined by bewildered Wizard 14482 | -5/Factory | Joined by bewildered Wizard 14607 | -5/Factory | Build established: Generator-Tank 14648 | -5/Factory | Discovered new exit (range 8) 14656 | -5/Factory | Identified exit to Upper Caves 14780 | -5/Factory | Joined by bewildered Wizard 14804 | -5/Factory | Reached level 21 14829 | -5/Factory | Joined by bewildered Wizard 14830 | -5/Factory | Joined by bewildered Wizard 14844 | -5/Factory | Lost 4 allies 14875 | -5/Factory | Garrison activated, responded to threat 14876 | -5/Factory | Discovered exit to Factory (range 7) 14909 | -5/Factory | Sucked down chute 14909 | -5/Factory | Entered Waste 14919 | -5/Waste | Spotted C-40 Crusher 14922 | -5/Waste | Spotted C-40 Crusher 14924 | -5/Waste | 1 allies followed down the chute 14932 | -5/Waste | Spotted C-40 Crusher 14934 | -5/Waste | Spotted C-40 Crusher 14943 | -5/Waste | Warlord forces began an assault 14956 | -5/Waste | Allies destroyed C-40 Crusher 14957 | -5/Waste | Spotted C-40 Crusher 14965 | -5/Waste | Allies destroyed C-40 Crusher 14967 | -5/Waste | Allies destroyed C-40 Crusher 14971 | -5/Waste | Allies destroyed C-40 Crusher 14977 | -5/Waste | Allies destroyed C-40 Crusher 14988 | -5/Waste | Spotted C-40 Crusher 14990 | -5/Waste | Destroyed C-40 Crusher 15011 | -5/Waste | Found Damper Plating 15018 | -5/Waste | Discovered new exit (range 13) 15036 | -5/Waste | Identified exit to Factory 15047 | -5/Waste | Entered Factory 15047 | -5/Factory | Accompanied by 17 allies 15121 | -5/Factory | Joined by bewildered Wizard 15121 | -5/Factory | Joined by bewildered Wizard 15122 | -5/Factory | Joined by bewildered Wizard 15152 | -5/Factory | Lost 4 allies 15173 | -5/Factory | Joined by bewildered Wizard 15185 | -5/Factory | Reached level 22 15239 | -5/Factory | Lost 10 allies 15257 | -5/Factory | Spotted B-75 Beast 15265 | -5/Factory | Upgraded with Utility slot (x1) 15272 | -5/Factory | Joined by bewildered Wizard 15272 | -5/Factory | Joined by bewildered Wizard 15272 | -5/Factory | Joined by bewildered Wizard 15272 | -5/Factory | Allies destroyed B-75 Beast 15302 | -5/Factory | Joined by bewildered Wizard 15570 | -5/Factory | Discovered exit to Factory (range 8) 16045 | -5/Factory | Joined by bewildered Wizard 16122 | -5/Factory | Reached level 23 16137 | -5/Factory | Discovered exit to Factory (range 16) 16164 | -5/Factory | Joined by bewildered Wizard 16192 | -5/Factory | Lost 6 allies 16350 | -5/Factory | Build established: Tank 16495 | -5/Factory | Discovered exit to Upper Caves (range 13) 16516 | -5/Factory | Entered Upper Caves 16593 | -5/Upper Caves | Joined by bewildered Wizard 16595 | -5/Upper Caves | Joined by bewildered Wizard 16684 | -5/Upper Caves | Encountered a Warlord checkpoint 16688 | -5/Upper Caves | Joined by bewildered Wizard 16688 | -5/Upper Caves | Joined by bewildered Wizard 16705 | -5/Upper Caves | Attracted the attention of an 0b10 outpost 16772 | -5/Upper Caves | Joined by bewildered Wizard 17160 | -5/Upper Caves | Discovered new exit (range 10) 17172 | -5/Upper Caves | Identified exit to Upper Caves 17381 | -5/Upper Caves | Learned location of 1 exit from Factory 17395 | -5/Upper Caves | Found DCF Scrap (15 items) 17403 | -5/Upper Caves | Learned Factory trap positions 17754 | -5/Upper Caves | Entered another Upper Caves area 17754 | -5/Upper Caves | Accompanied by 6 allies 17776 | -5/Upper Caves | Discovered exit to Factory (range 10) 17870 | -5/Upper Caves | Joined by bewildered Wizard 17993 | -5/Upper Caves | Attracted the attention of an 0b10 checkpoint 18010 | -5/Upper Caves | Encountered a Warlord checkpoint 18069 | -5/Upper Caves | Spotted B-75 Beast 18078 | -5/Upper Caves | Destroyed B-75 Beast 18145 | -5/Upper Caves | Joined by bewildered Wizard 18146 | -5/Upper Caves | Joined by bewildered Wizard 18215 | -5/Upper Caves | Attracted the attention of an 0b10 outpost 18222 | -5/Upper Caves | Reached level 24 18262 | -5/Upper Caves | Joined by bewildered Wizard 18449 | -5/Upper Caves | Discovered new exit (range 5) 18455 | -5/Upper Caves | Identified exit to Warlord 18534 | -5/Upper Caves | Attacked by a delusional Derelict stockpiling parts 18634 | -5/Upper Caves | Joined by bewildered Wizard 18810 | -5/Upper Caves | Joined by bewildered Wizard 18811 | -5/Upper Caves | Joined by bewildered Wizard 18811 | -5/Upper Caves | Joined by bewildered Wizard 18815 | -5/Upper Caves | Build established: Generator-Tank 18830 | -5/Upper Caves | Entered Warlord 18830 | -5/Warlord | Accompanied by 7 allies 18871 | -5/Warlord | Discovered new exit (range 12) 18884 | -5/Warlord | Identified exit to Proximity Caves 19390 | -5/Warlord | Warlord's base attacked by MAIN.C 19420 | -5/Warlord | Found Vortex Catalyst Activator 19548 | -5/Warlord | Opened Warlord's prototype stash 19715 | -5/Warlord | Warlord forces counterattacked 19739 | -5/Warlord | Spotted Executioner 19759 | -5/Warlord | Destroyed Executioner 19772 | -5/Warlord | Lost 6 allies 19781 | -5/Warlord | Spotted Executioner 19783 | -5/Warlord | Destroyed 7 combat bots 19801 | -5/Warlord | Spotted B-86 Titan 19807 | -5/Warlord | Spotted Striker 19830 | -5/Warlord | Core integrity fell below 50% 19887 | -5/Warlord | Lost 21 allies 19904 | -5/Warlord | P-80 Master assimilated allied 3B-MIV(g) 19922 | -5/Warlord | Entered Proximity Caves 19954 | -4/Proximity Caves | Lost 8 allies 20023 | -4/Proximity Caves | Joined by bewildered Wizard 20024 | -4/Proximity Caves | Joined by bewildered Wizard 20036 | -4/Proximity Caves | Reached level 25 20076 | -4/Proximity Caves | Joined by bewildered Wizard 20076 | -4/Proximity Caves | Joined by bewildered Wizard 20077 | -4/Proximity Caves | Joined by bewildered Wizard 20244 | -4/Proximity Caves | Spotted B-86 Titan 20252 | -4/Proximity Caves | Destroyed B-86 Titan 20336 | -4/Proximity Caves | Discovered exit to Factory (range 15) 20413 | -4/Proximity Caves | Joined by bewildered Wizard 20415 | -4/Proximity Caves | Attracted the attention of an 0b10 outpost 20466 | -4/Proximity Caves | Lost 5 allies 20814 | -4/Proximity Caves | Entered Factory 20814 | -4/Factory | Accompanied by 2 allies 20815 | -4/Factory | Identified exit to Upper Caves 20816 | -4/Factory | Loaded intel: 71 trap records 20913 | -4/Factory | Joined by bewildered Wizard 20913 | -4/Factory | Joined by bewildered Wizard 20924 | -4/Factory | Joined by bewildered Wizard 20928 | -4/Factory | Joined by bewildered Wizard 21197 | -4/Factory | Reached level 26 21355 | -4/Factory | Discovered exit to Upper Caves (range 9) 21481 | -4/Factory | Incoming investigation squad redirected 21493 | -4/Factory | Joined by bewildered Wizard 21662 | -4/Factory | Lost 4 allies 21668 | -4/Factory | Joined by bewildered Wizard 21669 | -4/Factory | Joined by bewildered Wizard 21706 | -4/Factory | Joined by bewildered Wizard 21707 | -4/Factory | Joined by bewildered Wizard 21726 | -4/Factory | Garrison activated, responded to threat 21822 | -4/Factory | Joined by bewildered Wizard 22156 | -4/Factory | Entered Upper Caves 22223 | -4/Upper Caves | Joined by bewildered Wizard 22224 | -4/Upper Caves | Joined by bewildered Wizard 22224 | -4/Upper Caves | Joined by bewildered Wizard 22394 | -4/Upper Caves | Joined by bewildered Wizard 22449 | -4/Upper Caves | Identified exit to Upper Caves 22502 | -4/Upper Caves | Joined by bewildered Wizard 23230 | -4/Upper Caves | Entered another Upper Caves area 23230 | -4/Upper Caves | Accompanied by 4 allies 23232 | -4/Upper Caves | Reached level 27 23233 | -4/Upper Caves | Discovered new exit (range 16) 23250 | -4/Upper Caves | Identified exit to Research 23384 | -4/Upper Caves | Joined by bewildered Wizard 23442 | -4/Upper Caves | Attracted the attention of an 0b10 checkpoint 23462 | -4/Upper Caves | Joined by bewildered Wizard 23542 | -4/Upper Caves | Discovered new exit (range 6) 23548 | -4/Upper Caves | Identified exit to Zhirov 23654 | -4/Upper Caves | Attracted the attention of an 0b10 outpost 23672 | -4/Upper Caves | Joined by bewildered Wizard 23672 | -4/Upper Caves | Joined by bewildered Wizard 23674 | -4/Upper Caves | Joined by bewildered Wizard 23683 | -4/Upper Caves | Upgraded with Power slot (x1) 23691 | -4/Upper Caves | Lost 3 allies 24587 | -4/Upper Caves | Entered Zhirov 24587 | -4/Zhirov | Accompanied by 6 allies 24587 | -4/Zhirov | Discovered new exit (range 3) 24592 | -4/Zhirov | Identified exit to Proximity Caves 24611 | -4/Zhirov | Met Zhirov 24638 | -4/Zhirov | Learned location of Command (-1) 24638 | -4/Zhirov | Learned location of Quarantine (-2) 24651 | -4/Zhirov | Zhirov requested help retrieving the SGEMP Prototype 24692 | -4/Zhirov | Found Alien Artifact 24692 | -4/Zhirov | Identified Integrated Reactor 24692 | -4/Zhirov | Installed Integrated Reactor, increased core energy generation (+10) 24830 | -4/Zhirov | Entered Proximity Caves 24830 | -3/Proximity Caves | Accompanied by 6 allies 24918 | -3/Proximity Caves | Spotted B-86 Titan 24925 | -3/Proximity Caves | Allies destroyed B-86 Titan 24949 | -3/Proximity Caves | Reached level 28 25045 | -3/Proximity Caves | Build established: Gunner 25115 | -3/Proximity Caves | Joined by bewildered Wizard 25129 | -3/Proximity Caves | Found Imp. Powered Armor 25342 | -3/Proximity Caves | Upgraded with Power slot (x1) 25392 | -3/Proximity Caves | Discovered exit to Research (range 3) 25649 | -3/Proximity Caves | Build established: Generator-Gunner 25699 | -3/Proximity Caves | Attracted the attention of an 0b10 base 25702 | -3/Proximity Caves | Joined by bewildered Wizard 25710 | -3/Proximity Caves | Joined by bewildered Wizard 25711 | -3/Proximity Caves | Joined by bewildered Wizard 25734 | -3/Proximity Caves | Lost 3 allies 25739 | -3/Proximity Caves | Learned Armory emergency access door positions 25739 | -3/Proximity Caves | Learned Armory trap positions 25764 | -3/Proximity Caves | Learned Factory trap positions 26192 | -3/Proximity Caves | Entered Research 26192 | -3/Research | Accompanied by 6 allies 26260 | -3/Research | Discovered new exit (range 11) 26266 | -3/Research | Watched by a mysterious "MATRIX" hacker. 26342 | -3/Research | Identified exit to Testing 26500 | -3/Research | Garrison activated, responded to threat 26503 | -3/Research | Reached level 29 26573 | -3/Research | Joined by bewildered Wizard 26711 | -3/Research | Lost 5 allies 26775 | -3/Research | Joined by bewildered Wizard 26775 | -3/Research | Joined by bewildered Wizard 26776 | -3/Research | Joined by bewildered Wizard 26776 | -3/Research | Joined by bewildered Wizard 26860 | -3/Research | Reached level 30 26901 | -3/Research | Joined by bewildered Wizard 26901 | -3/Research | Lost 3 allies 26925 | -3/Research | Destroyed 12 combat bots 26942 | -3/Research | First assault squad dispatched 27487 | -3/Research | Destroyed 7 combat bots 27549 | -3/Research | Build established: Hacker-Gunner 27722 | -3/Research | Incoming assault squad redirected 27894 | -3/Research | Spotted B-86 Titan 27978 | -3/Research | Spotted B-86 Titan 27994 | -3/Research | Destroyed B-86 Titan 28040 | -3/Research | Discovered new exit (range 13) 28075 | -3/Research | Identified exit to Research 28077 | -3/Research | Entered another Research area 28079 | -2/Research | Reached level 31 28085 | -2/Research | Upgraded with Weapon slot (x1) 28253 | -2/Research | Joined by bewildered Wizard 28253 | -2/Research | Joined by bewildered Wizard 28289 | -2/Research | Spotted B-90 Cyclops 28302 | -2/Research | Joined by bewildered Wizard 28302 | -2/Research | Joined by bewildered Wizard 28303 | -2/Research | Destroyed B-90 Cyclops 28327 | -2/Research | First assault squad dispatched 28357 | -2/Research | Lost 3 allies 28600 | -2/Research | Incoming assault squad redirected 28605 | -2/Research | Reached level 32 28649 | -2/Research | Destroyed 8 combat bots 28761 | -2/Research | Scrapoid reinforcements arrived 28770 | -2/Research | Incoming investigation squad redirected 28774 | -2/Research | P-80 Master assimilated allied 02R02-D 29454 | -2/Research | Discovered new exit (range 9) 29545 | -2/Research | Reached level 33 29571 | -2/Research | Identified exit to Access 29585 | -2/Research | Entered Access 30042 | -1/Access | Energy Cycler disabled 30181 | -1/Access | Reached level 34 30205 | -1/Access | Destroyed 7 combat bots 30351 | -1/Access | Garrison activated, responded to threat 30372 | -1/Access | Destroyed 8 combat bots 30386 | -1/Access | Incoming investigation squad redirected 30480 | -1/Access | Core integrity fell below 50% 30481 | -1/Access | Scrapoid reinforcements arrived 30488 | -1/Access | Spotted B-99 Colossus 30493 | -1/Access | Incoming investigation squad redirected 30496 | -1/Access | Allies destroyed B-99 Colossus 30539 | -1/Access | P-80 Master assimilated allied 01A07-D 30568 | -1/Access | Lost 4 allies 30585 | -1/Access | First assault squad dispatched 30596 | -1/Access | Destroyed 7 combat bots 30625 | -1/Access | Reached level 35 30781 | -1/Access | Destroyed 8 combat bots 30788 | -1/Access | Discovered new exit (range 6) 30794 | -1/Access | Identified exit to Surface 30796 | -1/Access | Core integrity fell below 20% 30811 | *** | Escaped! Last Messages --------------- 30789_ System corrupted: Substantial component data lost. 30794_ Slug penetrates Wall. 30794_ EXIT=IDENTIFIED: SURFACE 30795_ Penetrated by Slug. 30797_ Slug penetrates Wall. 30797_ Damper Plating destroyed. 30798_ Penetrated by Slug. 30799_ Activated shielding mode. 30799_ Slug penetrates H-88 Terminator. 30799_ H-88 Terminator destroyed. 30800_ Slug penetrates Wall. 30800_ Deflected attack with Hvy. Shield Leg. 30803_ Slug penetrates Wall. 30803_ H-88 Terminator suffers critical hit (Blast). 30803_ H-88 Terminator destroyed. 30805_ K-01 Serf collects debris. 30808_ U-05 Engineer builds a Wall. 30809_ System corrupted: Heat flow error (+188). 30809_ K-01 Serf collects debris. 30811_ Ended shielding mode. Map ----- +----------------------------------------------------+ | ?????????????????????????????????????????????????? | | ?????????????????????????????????????????????????? | | ?????????????????????????????????????????????????? | | ?????????????????????????????????????????????????? | | ?????????????????????????????????????????????????? | | ?????????????????????????????????????????????????? | | ?????????????????????????????????????????????????? | | ?????????????????????????????????????????????????? | | ?????????????????????????????????????????????????? | | ?????????????????????????????????????????????????? | | ?????????????????????????????????????????????????? | | ?????????????????????????????????????????????????? | | ?????????????????????????????????????????????????? | | ?????????????????????????????????????????????????? | | ?????????????????????BB????BB????????????????????? | | ?????????????????????BB????BB????????????????????? | | ?????????????????????????????????????????????????? | | ?????????????????????????????????????????????????? | | ?????????????????????????????????????????????????? | | ?????????????????????????????????????????????????? | | ???????????????????#""""""""""#??????????????????? | | ??????????k????????# #??????????????????? | | ???????????????????# #??????????????????? | | ??????????k????????# #??????????????????? | | ???????????????????# "" #??????????????????? | | ???????????????????# "@ #??????????????????? | | ???????????????????# #??????????????????? | | ???????????????????# #?????????????##???? | | ???????????????????# #????????????? ????# | | ??????????????????## ##???????????? ?? # | | ??????????????????# #??????????? " # | | ??????????????????##"" ##??????????? """ # | | ???????????????????#"" #????????????""" # | | ???????????????????#"" #??????##???? " # | | ???????????????????#T #?????# #??? ?? | | ???????????????????#"" ;????#=#???? ??? | | ???????????????????#"" =???# ##### ???? | | ???????????????#####"" ####|##%=[""+##+#### | | ??????????? %[u%=%*=%|!!%!!%%% | | ?????????? %%==%*%=!*!=%%! | | ???????????########################+######## % | | ????????????????????????????????#%!% #?? | | ????????????????????????????????# % #??? | | ????????????????????????????????# w #??? ] | | ???????????????????????????????## #???? ] | | ???????????????????????????????## #???? ! | | ??????????????????????????????? # % ##????"" | | ??????????????????????????????? # % #?????""T | | ????????????????????????????????# #??????"" | | ????????????????????????????????# #???????? | +----------------------------------------------------+ Best States ------------- Heat Dissipation 157 Coolant Potential 80 Energy Generation 81 Energy Capacity 1055 Matter Stores 450 Matter Capacity 450 Sight Range 16 Robot Scan Range 20 Terrain Scan Density 10 Jamming Range 12 Base Temperature (-) 150 Armor Coverage 2000 Resistance: KI 20 Resistance: TH 20 Resistance: EM 90 Evasion (%) 70 Targeting Accuracy 5 Particle Charging 30 Offensive Hacking 40 Defensive Hacking 15 Item Schematics ----------------- Combat Drone Bay | -6/Data Miner | Free Lgt. Regenerative Plating | -6/Data Miner | Free Adv. EM Disruption Field | -6/Data Miner | Free Cld. Nuclear Pulse Thruster | -6/Data Miner | Free Kinetic Spear | -6/Data Miner | Free Myomer Leg | -6/Data Miner | Free Quantum Capacitor | -6/Data Miner | Free Hvy. Gauss Cannon | -6/Data Miner | Free Imp. Corruption Screen | -6/Data Miner | Free Adv. Reaction Control System | -6/Data Miner | Free Adv. Point Defense System | -6/Data Miner | Free Hyp. Railgun | -6/Data Miner | Free Assault Drone Bay | -4/Zhirov | Free Exp. Heat Sink | -4/Zhirov | Free Exp. Optical Array | -4/Zhirov | Free Imp. Arc Thrower | -4/Zhirov | Free Robot Schematics ------------------ S-27 Virus | -6/Data Miner | Free D-63 Destroyer | -6/Data Miner | Free G-50 Soldier | -6/Data Miner | Free Fabricated ------------ Nothing Repaired ---------- Nothing Studied --------- None Alien Tech Used ----------------- Integrated Reactor Achievements -------------- Beloved Explosive Keycard Reappropriation Rodney's Helpers SUBSUB Challenges ------------ None RPGLIKE | -11 -10 -10 -9 -9 -6 -6 -6 -6 -5 -5 -5 -5 -5 -5 -5 -4 -4 -4 -4 -4 -3 -3 -2 -1 --------- Run | Yrd Mat Sub Rec Scr Fac Low Low Dat Pro Fac Was Fac Upp Upp War Pro Fac Upp Upp Zhi Pro Res Res Acc Levels Raised 34 | . 2 1 3 1 5 1 1 . 3 3 . 2 . 1 . 1 1 . 1 . 1 2 3 2 XP Earned 54426 | 3000 3335 2288 4520 604 8059 1450 1000 650 4117 4525 127 2687 484 834 598 1504 1787 349 814 105 1342 3230 3618 3399 XP Spent 53880 | 2750 1725 1220 3300 1225 9085 2200 2000 . 3300 4600 . 2600 1840 800 . 1900 1760 . 1475 . 800 3700 1400 6200 Upgrades 110 | 7 4 3 3 7 40 2 1 . 5 3 . 1 5 1 . 2 4 . 4 . 1 5 1 11 Power Slot 2 | . . . . . . . . . . . . . . . . . . . 1 . 1 . . . Propulsion Slot 5 | 1 . . 2 . . . . . 1 1 . . . . . . . . . . . . . . Utility Slot 8 | 1 1 1 1 . . 1 1 . . 1 . 1 . . . . . . . . . . . . Weapon Slot 4 | 1 1 . . . 1 . . . . . . . . . . . . . . . . . 1 . Core Integrity 27 | . . . . . 19 . . . . . . . . . . . . . . . . . . 8 Heat Dissipation 22 | . . 2 . . 10 . . . 2 . . . 4 . . . 4 . . . . . . . Mass Support 2 | 1 . . . . . . . . . 1 . . . . . . . . . . . . . . Inventory Capacity 2 | 1 . . . . . 1 . . . . . . . . . . . . . . . . . . Sensor Range 10 | . 2 . . 7 . . . . . . . . . . . . . . 1 . . . . . Ranged Accuracy 7 | 2 . . . . . . . . 2 . . . . 1 . 2 . . . . . . . . Hack Attack % 8 | . . . . . 1 . . . . . . . 1 . . . . . . . . 3 . 3 Hack Defense % 3 | . . . . . 1 . . . . . . . . . . . . . . . . 2 . . KI Resistance % 4 | . . . . . 4 . . . . . . . . . . . . . . . . . . . TH Resistance % 4 | . . . . . 4 . . . . . . . . . . . . . . . . . . . TH Damage % 2 | . . . . . . . . . . . . . . . . . . . 2 . . . . . Protomatter Created 6399 | . 280 . 234 . 572 41 16 . 154 83 . 287 123 312 347 160 369 152 251 . 219 1165 961 673 Integrity Restored 15996 | . 603 427 577 . 2170 123 48 . 983 255 261 725 18 513 498 822 1351 292 381 . 221 1863 3159 706 Core 10221 | . 603 323 229 . 1897 123 48 . 661 65 140 221 18 302 498 822 374 37 202 . 66 1195 1782 615 Parts 5775 | . . 104 348 . 273 . . . 322 190 121 504 . 211 . . 977 255 179 . 155 668 1377 91 Protomatter Decayed 4575 | . . 101 157 . 30 . . . 310 399 20 525 141 384 315 105 189 165 492 . 397 402 182 261 Game ------ Seed BorgSuspensionSink Manual? 0 Play Time 05:21:31 Cumulative 178.4 hours Start 2026.03.24 @ 01:33:41 End 2026.03.30 @ 00:08:30 Sessions 7 Manual Loads 0 Difficulty Rogue Special Mode Winter2019/RPGLIKE Game No. 79 Rogue 75 Adventurer 4 Explorer 0 Win Type 0 Total 5 Types 4/0/1/0/0/0/0/0/0/0 Lore% 70 Gallery% 49 Achievement% 40 Wizard Run 0 Options --------- Layout 0 ASCII 0 Keyboard 0 Movement Arrows Keybinds 0 Fullscreen 2 Font 32/SmallcapsGlow Map View 88x55 Zoom Use 0% Tactical HUD 1 Map Filters NONE Filters NONE Steam 1 RUN: 9a316bba-01e2-43f8-8074-d4d5aebb314f